Department Family,Entity,Date,Expense Type,Expense Area,Supplier,SME,Transaction Number,Amount,Description,Expenditure Type
Land Registry,Land Registry,16/08/2016,Computer Equipment Maintenance,IS Service Delivery,ANS Group Limited,Large,1155219,"57,166.67",Computer Equipment Maintenance,Administration
Land Registry,Land Registry,09/08/2016,Stationery National Contracts,Birkenhead Office,Banner Business Services Ltd,Large,1155769,"1,030.78",Stationery,Administration
Land Registry,Land Registry,09/08/2016,Stationery National Contracts,Central RFS,Banner Business Services Ltd,Large,1155769,896.64,Stationery,Administration
Land Registry,Land Registry,09/08/2016,Stationery National Contracts,Coventry Office,Banner Business Services Ltd,Large,1155769,324.17,Stationery,Administration
Land Registry,Land Registry,09/08/2016,Stationery National Contracts,Croydon Office,Banner Business Services Ltd,Large,1155769,790.06,Stationery,Administration
Land Registry,Land Registry,09/08/2016,Stationery National Contracts,Director of Information Systems,Banner Business Services Ltd,Large,1155769,89.08,Stationery,Administration
Land Registry,Land Registry,09/08/2016,Stationery National Contracts,Durham Office,Banner Business Services Ltd,Large,1155769,"2,982.90",Stationery,Administration
Land Registry,Land Registry,09/08/2016,Stationery National Contracts,Finance Group,Banner Business Services Ltd,Large,1155769,202.52,Stationery,Administration
Land Registry,Land Registry,09/08/2016,Stationery National Contracts,Fylde Office,Banner Business Services Ltd,Large,1155769,770.41,Stationery,Administration
Land Registry,Land Registry,09/08/2016,Stationery National Contracts,Gloucester Office,Banner Business Services Ltd,Large,1155769,"1,034.35",Stationery,Administration
Land Registry,Land Registry,09/08/2016,Stationery National Contracts,Hull Office,Banner Business Services Ltd,Large,1155769,"2,104.09",Stationery,Administration
Land Registry,Land Registry,09/08/2016,Stationery National Contracts,Internal Solutions Group,Banner Business Services Ltd,Large,1155769,821.85,Stationery,Administration
Land Registry,Land Registry,09/08/2016,Stationery National Contracts,IS Service Delivery,Banner Business Services Ltd,Large,1155769,"9,342.64",Stationery,Administration
Land Registry,Land Registry,09/08/2016,Stationery National Contracts,Land Charges,Banner Business Services Ltd,Large,1155769,555.88,Stationery,Administration
Land Registry,Land Registry,09/08/2016,Stationery National Contracts,Leicester Office,Banner Business Services Ltd,Large,1155769,952.68,Stationery,Administration
Land Registry,Land Registry,09/08/2016,Stationery National Contracts,Marketing Services Team,Banner Business Services Ltd,Large,1155769,41.35,Stationery,Administration
Land Registry,Land Registry,09/08/2016,Stationery National Contracts,Nottingham Office,Banner Business Services Ltd,Large,1155769,"1,601.72",Stationery,Administration
Land Registry,Land Registry,09/08/2016,Stationery National Contracts,Peterborough Office,Banner Business Services Ltd,Large,1155769,816.67,Stationery,Administration
Land Registry,Land Registry,09/08/2016,Stationery National Contracts,Plymouth Office,Banner Business Services Ltd,Large,1155769,"1,436.25",Stationery,Administration
Land Registry,Land Registry,09/08/2016,Stationery National Contracts,Telford Office,Banner Business Services Ltd,Large,1155769,"1,176.07",Stationery,Administration
Land Registry,Land Registry,09/08/2016,Stationery National Contracts,Wales Office,Banner Business Services Ltd,Large,1155769,"4,804.69",Stationery,Administration
Land Registry,Land Registry,09/08/2016,Stationery National Contracts,Weymouth Office,Banner Business Services Ltd,Large,1155769,406.93,Stationery,Administration
Land Registry,Land Registry,09/08/2016,Stationery National Contracts,HR Operations,Banner Business Services Ltd,Large,1155769,192.84,Stationery,Administration
Land Registry,Land Registry,09/08/2016,Stationery National Contracts,Registration Legal Services Group,Banner Business Services Ltd,Large,1155769,4.67,Stationery,Administration
Land Registry,Land Registry,03/08/2016,Data Network Lines,IS Service Delivery,British Telecommunications Plc,Large,1155318,"35,721.33",Data Network Lines,Administration
Land Registry,Land Registry,04/08/2016,Data Network Lines,IS Service Delivery,British Telecommunications Plc,Large,1155441,"2,841.66",Data Network Lines,Administration
Land Registry,Land Registry,04/08/2016,Telephone Costs,IS Service Delivery,British Telecommunications Plc,Large,1155441,"160,703.33",Telephone Costs,Administration
Land Registry,Land Registry,17/08/2016,Computer Equipment Maintenance,Leicester Office,Carillion Services Ltd,Large,1156826,770.99,Computer Equipment Maintenance,Administration
Land Registry,Land Registry,17/08/2016,Electricity,Birkenhead Office,Carillion Services Ltd,Large,1156280,"4,196.37",Electricity,Administration
Land Registry,Land Registry,17/08/2016,Electricity,Coventry Office,Carillion Services Ltd,Large,1156280,"-2,410.32",Electricity,Administration
Land Registry,Land Registry,17/08/2016,Electricity,Croydon Office,Carillion Services Ltd,Large,1156280,"6,694.43",Electricity,Administration
Land Registry,Land Registry,17/08/2016,Electricity,Director of Information Systems,Carillion Services Ltd,Large,1156280,"47,505.13",Electricity,Administration
Land Registry,Land Registry,17/08/2016,Electricity,Durham Office,Carillion Services Ltd,Large,1156280,"3,734.16",Electricity,Administration
Land Registry,Land Registry,17/08/2016,Electricity,Fylde Office,Carillion Services Ltd,Large,1156280,"3,700.39",Electricity,Administration
Land Registry,Land Registry,17/08/2016,Electricity,Gloucester Computer Centre,Carillion Services Ltd,Large,1156280,"29,017.54",Electricity,Administration
Land Registry,Land Registry,17/08/2016,Electricity,Gloucester Office,Carillion Services Ltd,Large,1156280,"4,462.99",Electricity,Administration
Land Registry,Land Registry,17/08/2016,Electricity,Hull Office,Carillion Services Ltd,Large,1156280,"5,832.42",Electricity,Administration
Land Registry,Land Registry,17/08/2016,Electricity,Leicester Office,Carillion Services Ltd,Large,1156280,557.48,Electricity,Administration
Land Registry,Land Registry,17/08/2016,Electricity,Nottingham Office,Carillion Services Ltd,Large,1156280,"7,094.60",Electricity,Administration
Land Registry,Land Registry,17/08/2016,Electricity,Telford Office,Carillion Services Ltd,Large,1156280,"4,295.58",Electricity,Administration
Land Registry,Land Registry,17/08/2016,Electricity,Wales Office,Carillion Services Ltd,Large,1156280,"4,401.81",Electricity,Administration
Land Registry,Land Registry,17/08/2016,Electricity,Weymouth Office,Carillion Services Ltd,Large,1156280,"3,358.44",Electricity,Administration
Land Registry,Land Registry,17/08/2016,Facilities - Core Fee,Birkenhead Office,Carillion Services Ltd,Large,1156235,"5,436.75",Facilities - Core Fee,Administration
Land Registry,Land Registry,17/08/2016,Facilities - Core Fee,Coventry Office,Carillion Services Ltd,Large,1156235,-21.76,Facilities - Core Fee,Administration
Land Registry,Land Registry,17/08/2016,Facilities - Core Fee,Croydon Office,Carillion Services Ltd,Large,1156235,"8,064.40",Facilities - Core Fee,Administration
Land Registry,Land Registry,17/08/2016,Facilities - Core Fee,Director of Information Systems,Carillion Services Ltd,Large,1156235,"17,748.31",Facilities - Core Fee,Administration
Land Registry,Land Registry,17/08/2016,Facilities - Core Fee,Durham Office,Carillion Services Ltd,Large,1156235,"6,418.59",Facilities - Core Fee,Administration
Land Registry,Land Registry,17/08/2016,Facilities - Core Fee,Fylde Office,Carillion Services Ltd,Large,1156235,"4,055.30",Facilities - Core Fee,Administration
Land Registry,Land Registry,17/08/2016,Facilities - Core Fee,Gloucester Computer Centre,Carillion Services Ltd,Large,1156235,"7,906.03",Facilities - Core Fee,Administration
Land Registry,Land Registry,17/08/2016,Facilities - Core Fee,Gloucester Office,Carillion Services Ltd,Large,1156235,"3,612.09",Facilities - Core Fee,Administration
Land Registry,Land Registry,17/08/2016,Facilities - Core Fee,Hull Office,Carillion Services Ltd,Large,1156235,"6,540.85",Facilities - Core Fee,Administration
Land Registry,Land Registry,17/08/2016,Facilities - Core Fee,Leicester Office,Carillion Services Ltd,Large,1156235,"9,400.98",Facilities - Core Fee,Administration
Land Registry,Land Registry,17/08/2016,Facilities - Core Fee,Nottingham Office,Carillion Services Ltd,Large,1156235,"6,184.36",Facilities - Core Fee,Administration
Land Registry,Land Registry,17/08/2016,Facilities - Core Fee,Peterborough Office,Carillion Services Ltd,Large,1156235,"3,524.38",Facilities - Core Fee,Administration
Land Registry,Land Registry,17/08/2016,Facilities - Core Fee,RFS4 - Coventry,Carillion Services Ltd,Large,1156235,21.76,Facilities - Core Fee,Administration
Land Registry,Land Registry,17/08/2016,Facilities - Core Fee,Telford Office,Carillion Services Ltd,Large,1156235,"6,305.12",Facilities - Core Fee,Administration
Land Registry,Land Registry,17/08/2016,Facilities - Core Fee,Wales Office,Carillion Services Ltd,Large,1156235,"5,336.08",Facilities - Core Fee,Administration
Land Registry,Land Registry,17/08/2016,Facilities - Core Fee,Weymouth Office,Carillion Services Ltd,Large,1156235,"2,670.47",Facilities - Core Fee,Administration
Land Registry,Land Registry,17/08/2016,Facilities - Quoted & Ad Hoc Works,Birkenhead Office,Carillion Services Ltd,Large,1156826,"4,575.21",Facilities - Quoted & Ad Hoc Works,Administration
Land Registry,Land Registry,17/08/2016,Facilities - Quoted & Ad Hoc Works,Coventry Office,Carillion Services Ltd,Large,1156826,"3,672.42",Facilities - Quoted & Ad Hoc Works,Administration
Land Registry,Land Registry,17/08/2016,Facilities - Quoted & Ad Hoc Works,Croydon Office,Carillion Services Ltd,Large,1156826,"5,228.64",Facilities - Quoted & Ad Hoc Works,Administration
Land Registry,Land Registry,17/08/2016,Facilities - Quoted & Ad Hoc Works,Director of Information Systems,Carillion Services Ltd,Large,1156826,"16,277.59",Facilities - Quoted & Ad Hoc Works,Administration
Land Registry,Land Registry,17/08/2016,Facilities - Quoted & Ad Hoc Works,Durham Office,Carillion Services Ltd,Large,1156826,"8,562.96",Facilities - Quoted & Ad Hoc Works,Administration
Land Registry,Land Registry,17/08/2016,Facilities - Quoted & Ad Hoc Works,Fylde Office,Carillion Services Ltd,Large,1156826,"6,896.42",Facilities - Quoted & Ad Hoc Works,Administration
Land Registry,Land Registry,17/08/2016,Facilities - Quoted & Ad Hoc Works,Gloucester Office,Carillion Services Ltd,Large,1156826,"6,816.41",Facilities - Quoted & Ad Hoc Works,Administration
Land Registry,Land Registry,17/08/2016,Facilities - Quoted & Ad Hoc Works,Hull Office,Carillion Services Ltd,Large,1156826,"6,599.37",Facilities - Quoted & Ad Hoc Works,Administration
Land Registry,Land Registry,17/08/2016,Facilities - Quoted & Ad Hoc Works,Leicester Office,Carillion Services Ltd,Large,1156826,"3,023.19",Facilities - Quoted & Ad Hoc Works,Administration
Land Registry,Land Registry,17/08/2016,Facilities - Quoted & Ad Hoc Works,Nottingham Office,Carillion Services Ltd,Large,1156826,229.09,Facilities - Quoted & Ad Hoc Works,Administration
Land Registry,Land Registry,17/08/2016,Facilities - Quoted & Ad Hoc Works,Peterborough Office,Carillion Services Ltd,Large,1156826,732.95,Facilities - Quoted & Ad Hoc Works,Administration
Land Registry,Land Registry,17/08/2016,Facilities - Quoted & Ad Hoc Works,Plymouth Office,Carillion Services Ltd,Large,1156826,"1,117.55",Facilities - Quoted & Ad Hoc Works,Administration
Land Registry,Land Registry,17/08/2016,Facilities - Quoted & Ad Hoc Works,Telford Office,Carillion Services Ltd,Large,1156826,"2,815.14",Facilities - Quoted & Ad Hoc Works,Administration
Land Registry,Land Registry,17/08/2016,Facilities - Quoted & Ad Hoc Works,Wales Office,Carillion Services Ltd,Large,1156826,"2,769.70",Facilities - Quoted & Ad Hoc Works,Administration
Land Registry,Land Registry,17/08/2016,Facilities - Quoted & Ad Hoc Works,Weymouth Office,Carillion Services Ltd,Large,1156826,"4,265.76",Facilities - Quoted & Ad Hoc Works,Administration
Land Registry,Land Registry,17/08/2016,FM Ext Helpdesk,Birkenhead Office,Carillion Services Ltd,Large,1156235,429.86,Facilities External Helpdesk,Administration
Land Registry,Land Registry,17/08/2016,FM Ext Helpdesk,Coventry Office,Carillion Services Ltd,Large,1156235,-7.21,Facilities External Helpdesk,Administration
Land Registry,Land Registry,17/08/2016,FM Ext Helpdesk,Croydon Office,Carillion Services Ltd,Large,1156235,517.42,Facilities External Helpdesk,Administration
Land Registry,Land Registry,17/08/2016,FM Ext Helpdesk,Director of Information Systems,Carillion Services Ltd,Large,1156235,"1,370.55",Facilities External Helpdesk,Administration
Land Registry,Land Registry,17/08/2016,FM Ext Helpdesk,Durham Office,Carillion Services Ltd,Large,1156235,539.50,Facilities External Helpdesk,Administration
Land Registry,Land Registry,17/08/2016,FM Ext Helpdesk,Fylde Office,Carillion Services Ltd,Large,1156235,375.19,Facilities External Helpdesk,Administration
Land Registry,Land Registry,17/08/2016,FM Ext Helpdesk,Gloucester Computer Centre,Carillion Services Ltd,Large,1156235,501.27,Facilities External Helpdesk,Administration
Land Registry,Land Registry,17/08/2016,FM Ext Helpdesk,Gloucester Office,Carillion Services Ltd,Large,1156235,540.35,Facilities External Helpdesk,Administration
Land Registry,Land Registry,17/08/2016,FM Ext Helpdesk,Hull Office,Carillion Services Ltd,Large,1156235,421.63,Facilities External Helpdesk,Administration
Land Registry,Land Registry,17/08/2016,FM Ext Helpdesk,Leicester Office,Carillion Services Ltd,Large,1156235,471.95,Facilities External Helpdesk,Administration
Land Registry,Land Registry,17/08/2016,FM Ext Helpdesk,Nottingham Office,Carillion Services Ltd,Large,1156235,"1,667.13",Facilities External Helpdesk,Administration
Land Registry,Land Registry,17/08/2016,FM Ext Helpdesk,Peterborough Office,Carillion Services Ltd,Large,1156235,550.64,Facilities External Helpdesk,Administration
Land Registry,Land Registry,17/08/2016,FM Ext Helpdesk,RFS4 - Coventry,Carillion Services Ltd,Large,1156235,7.21,Facilities External Helpdesk,Administration
Land Registry,Land Registry,17/08/2016,FM Ext Helpdesk,Telford Office,Carillion Services Ltd,Large,1156235,569.79,Facilities External Helpdesk,Administration
Land Registry,Land Registry,17/08/2016,FM Ext Helpdesk,Wales Office,Carillion Services Ltd,Large,1156235,408.51,Facilities External Helpdesk,Administration
Land Registry,Land Registry,17/08/2016,FM Ext Helpdesk,Weymouth Office,Carillion Services Ltd,Large,1156235,332.09,Facilities External Helpdesk,Administration
Land Registry,Land Registry,17/08/2016,FM Managed Services,Birkenhead Office,Carillion Services Ltd,Large,1156235,"5,667.91",Facilities Managed Services,Administration
Land Registry,Land Registry,17/08/2016,FM Managed Services,Central Facilities Management Team,Carillion Services Ltd,Large,1156235,"-2,733.98",Facilities Managed Services,Administration
Land Registry,Land Registry,17/08/2016,FM Managed Services,Coventry Office,Carillion Services Ltd,Large,1156235,"2,884.52",Facilities Managed Services,Administration
Land Registry,Land Registry,17/08/2016,FM Managed Services,Croydon Office,Carillion Services Ltd,Large,1156235,"5,730.38",Facilities Managed Services,Administration
Land Registry,Land Registry,17/08/2016,FM Managed Services,Director of Information Systems,Carillion Services Ltd,Large,1156235,"12,816.83",Facilities Managed Services,Administration
Land Registry,Land Registry,17/08/2016,FM Managed Services,Durham Office,Carillion Services Ltd,Large,1156235,"5,486.30",Facilities Managed Services,Administration
Land Registry,Land Registry,17/08/2016,FM Managed Services,Fylde Office,Carillion Services Ltd,Large,1156235,"5,382.56",Facilities Managed Services,Administration
Land Registry,Land Registry,17/08/2016,FM Managed Services,Gloucester Computer Centre,Carillion Services Ltd,Large,1156235,"2,530.35",Facilities Managed Services,Administration
Land Registry,Land Registry,17/08/2016,FM Managed Services,Gloucester Office,Carillion Services Ltd,Large,1156235,"1,946.32",Facilities Managed Services,Administration
Land Registry,Land Registry,17/08/2016,FM Managed Services,Hull Office,Carillion Services Ltd,Large,1156235,"5,218.77",Facilities Managed Services,Administration
Land Registry,Land Registry,17/08/2016,FM Managed Services,Leicester Office,Carillion Services Ltd,Large,1156235,"6,078.53",Facilities Managed Services,Administration
Land Registry,Land Registry,17/08/2016,FM Managed Services,Nottingham Office,Carillion Services Ltd,Large,1156235,"10,157.38",Facilities Managed Services,Administration
Land Registry,Land Registry,17/08/2016,FM Managed Services,Peterborough Office,Carillion Services Ltd,Large,1156235,"5,032.09",Facilities Managed Services,Administration
Land Registry,Land Registry,17/08/2016,FM Managed Services,RFS4 - Coventry,Carillion Services Ltd,Large,1156235,23.23,Facilities Managed Services,Administration
Land Registry,Land Registry,17/08/2016,FM Managed Services,Telford Office,Carillion Services Ltd,Large,1156235,"5,658.44",Facilities Managed Services,Administration
Land Registry,Land Registry,17/08/2016,FM Managed Services,Wales Office,Carillion Services Ltd,Large,1156235,"5,258.59",Facilities Managed Services,Administration
Land Registry,Land Registry,17/08/2016,FM Managed Services,Weymouth Office,Carillion Services Ltd,Large,1156235,"5,188.68",Facilities Managed Services,Administration
Land Registry,Land Registry,17/08/2016,FM Managed Services,Birkenhead Office,Carillion Services Ltd,Large,1156826,109.01,Facilities Managed Services,Administration
Land Registry,Land Registry,17/08/2016,"FF&F:Purchases <1,000",Coventry Office,Carillion Services Ltd,Large,1156826,412.11,"Furniture, Fixtures & Fittings: Purchases less than 1,000.00",Administration
Land Registry,Land Registry,17/08/2016,"FF&F:Purchases <1,000",Croydon Office,Carillion Services Ltd,Large,1156826,"1,569.21","Furniture, Fixtures & Fittings: Purchases less than 1,000.00",Administration
Land Registry,Land Registry,17/08/2016,"FF&F:Purchases <1,000",Director of Information Systems,Carillion Services Ltd,Large,1156826,"6,694.73","Furniture, Fixtures & Fittings: Purchases less than 1,000.00",Administration
Land Registry,Land Registry,17/08/2016,"FF&F:Purchases <1,000",Durham Office,Carillion Services Ltd,Large,1156826,593.94,"Furniture, Fixtures & Fittings: Purchases less than 1,000.00",Administration
Land Registry,Land Registry,17/08/2016,"FF&F:Purchases <1,000",Nottingham Office,Carillion Services Ltd,Large,1156826,381.99,"Furniture, Fixtures & Fittings: Purchases less than 1,000.00",Administration
Land Registry,Land Registry,17/08/2016,"FF&F:Purchases <1,000",Wales Office,Carillion Services Ltd,Large,1156826,"3,511.70","Furniture, Fixtures & Fittings: Purchases less than 1,000.00",Administration
Land Registry,Land Registry,17/08/2016,"FF&F:Purchases <1,000",Weymouth Office,Carillion Services Ltd,Large,1156826,"1,897.04","Furniture, Fixtures & Fittings: Purchases less than 1,000.00",Administration
Land Registry,Land Registry,17/08/2016,FF&F:Removals,Durham Office,Carillion Services Ltd,Large,1156826,278.20,"Furniture, Fixtures & Fittings: Removals",Administration
Land Registry,Land Registry,17/08/2016,FF&F:Removals,Fylde Office,Carillion Services Ltd,Large,1156826,662.54,"Furniture, Fixtures & Fittings: Removals",Administration
Land Registry,Land Registry,17/08/2016,FF&F:Removals,Weymouth Office,Carillion Services Ltd,Large,1156826,"13,255.23","Furniture, Fixtures & Fittings: Removals",Administration
Land Registry,Land Registry,17/08/2016,FF&F:Maintenance,Birkenhead Office,Carillion Services Ltd,Large,1156235,21.88,"Furniture, Fixtures & Fittings:Maintenance",Administration
Land Registry,Land Registry,17/08/2016,FF&F:Maintenance,Croydon Office,Carillion Services Ltd,Large,1156235,21.88,"Furniture, Fixtures & Fittings:Maintenance",Administration
Land Registry,Land Registry,17/08/2016,FF&F:Maintenance,Director of Information Systems,Carillion Services Ltd,Large,1156235,65.64,"Furniture, Fixtures & Fittings:Maintenance",Administration
Land Registry,Land Registry,17/08/2016,FF&F:Maintenance,Durham Office,Carillion Services Ltd,Large,1156235,21.88,"Furniture, Fixtures & Fittings:Maintenance",Administration
Land Registry,Land Registry,17/08/2016,FF&F:Maintenance,Fylde Office,Carillion Services Ltd,Large,1156235,21.88,"Furniture, Fixtures & Fittings:Maintenance",Administration
Land Registry,Land Registry,17/08/2016,FF&F:Maintenance,Gloucester Computer Centre,Carillion Services Ltd,Large,1156235,21.88,"Furniture, Fixtures & Fittings:Maintenance",Administration
Land Registry,Land Registry,17/08/2016,FF&F:Maintenance,Gloucester Office,Carillion Services Ltd,Large,1156235,21.88,"Furniture, Fixtures & Fittings:Maintenance",Administration
Land Registry,Land Registry,17/08/2016,FF&F:Maintenance,Hull Office,Carillion Services Ltd,Large,1156235,21.88,"Furniture, Fixtures & Fittings:Maintenance",Administration
Land Registry,Land Registry,17/08/2016,FF&F:Maintenance,Leicester Office,Carillion Services Ltd,Large,1156235,43.76,"Furniture, Fixtures & Fittings:Maintenance",Administration
Land Registry,Land Registry,17/08/2016,FF&F:Maintenance,Nottingham Office,Carillion Services Ltd,Large,1156235,21.88,"Furniture, Fixtures & Fittings:Maintenance",Administration
Land Registry,Land Registry,17/08/2016,FF&F:Maintenance,Peterborough Office,Carillion Services Ltd,Large,1156235,21.89,"Furniture, Fixtures & Fittings:Maintenance",Administration
Land Registry,Land Registry,17/08/2016,FF&F:Maintenance,Telford Office,Carillion Services Ltd,Large,1156235,21.88,"Furniture, Fixtures & Fittings:Maintenance",Administration
Land Registry,Land Registry,17/08/2016,FF&F:Maintenance,Wales Office,Carillion Services Ltd,Large,1156235,43.76,"Furniture, Fixtures & Fittings:Maintenance",Administration
Land Registry,Land Registry,17/08/2016,FF&F:Maintenance,Weymouth Office,Carillion Services Ltd,Large,1156235,21.88,"Furniture, Fixtures & Fittings:Maintenance",Administration
Land Registry,Land Registry,17/08/2016,FF&F:Maintenance,Director of Information Systems,Carillion Services Ltd,Large,1156826,675.85,"Furniture, Fixtures & Fittings:Maintenance",Administration
Land Registry,Land Registry,17/08/2016,FF&F:Maintenance,Gloucester Office,Carillion Services Ltd,Large,1156826,"1,736.82","Furniture, Fixtures & Fittings:Maintenance",Administration
Land Registry,Land Registry,17/08/2016,FF&F:Maintenance,Leicester Office,Carillion Services Ltd,Large,1156826,"1,716.52","Furniture, Fixtures & Fittings:Maintenance",Administration
Land Registry,Land Registry,17/08/2016,FF&F:Maintenance,Nottingham Office,Carillion Services Ltd,Large,1156826,687.37,"Furniture, Fixtures & Fittings:Maintenance",Administration
Land Registry,Land Registry,17/08/2016,FF&F:Maintenance,Peterborough Office,Carillion Services Ltd,Large,1156826,"3,125.01","Furniture, Fixtures & Fittings:Maintenance",Administration
Land Registry,Land Registry,17/08/2016,Gas,Birkenhead Office,Carillion Services Ltd,Large,1156280,455.37,Gas,Administration
Land Registry,Land Registry,17/08/2016,Gas,Coventry Office,Carillion Services Ltd,Large,1156280,"-10,248.00",Gas,Administration
Land Registry,Land Registry,17/08/2016,Gas,Croydon Office,Carillion Services Ltd,Large,1156280,-965.07,Gas,Administration
Land Registry,Land Registry,17/08/2016,Gas,Director of Information Systems,Carillion Services Ltd,Large,1156280,915.93,Gas,Administration
Land Registry,Land Registry,17/08/2016,Gas,Durham Office,Carillion Services Ltd,Large,1156280,507.03,Gas,Administration
Land Registry,Land Registry,17/08/2016,Gas,Fylde Office,Carillion Services Ltd,Large,1156280,603.14,Gas,Administration
Land Registry,Land Registry,17/08/2016,Gas,Gloucester Computer Centre,Carillion Services Ltd,Large,1156280,131.93,Gas,Administration
Land Registry,Land Registry,17/08/2016,Gas,Gloucester Office,Carillion Services Ltd,Large,1156280,527.22,Gas,Administration
Land Registry,Land Registry,17/08/2016,Gas,Hull Office,Carillion Services Ltd,Large,1156280,965.83,Gas,Administration
Land Registry,Land Registry,17/08/2016,Gas,Leicester Office,Carillion Services Ltd,Large,1156280,"1,874.24",Gas,Administration
Land Registry,Land Registry,17/08/2016,Gas,Nottingham Office,Carillion Services Ltd,Large,1156280,233.53,Gas,Administration
Land Registry,Land Registry,17/08/2016,Gas,Telford Office,Carillion Services Ltd,Large,1156280,722.77,Gas,Administration
Land Registry,Land Registry,17/08/2016,Gas,Wales Office,Carillion Services Ltd,Large,1156280,336.20,Gas,Administration
Land Registry,Land Registry,17/08/2016,Gas,Weymouth Office,Carillion Services Ltd,Large,1156280,458.17,Gas,Administration
Land Registry,Land Registry,17/08/2016,Grounds Maintenance,Birkenhead Office,Carillion Services Ltd,Large,1156235,330.30,Grounds Maintenance,Administration
Land Registry,Land Registry,17/08/2016,Grounds Maintenance,Croydon Office,Carillion Services Ltd,Large,1156235,62.27,Grounds Maintenance,Administration
Land Registry,Land Registry,17/08/2016,Grounds Maintenance,Director of Information Systems,Carillion Services Ltd,Large,1156235,"1,413.27",Grounds Maintenance,Administration
Land Registry,Land Registry,17/08/2016,Grounds Maintenance,Durham Office,Carillion Services Ltd,Large,1156235,773.64,Grounds Maintenance,Administration
Land Registry,Land Registry,17/08/2016,Grounds Maintenance,Fylde Office,Carillion Services Ltd,Large,1156235,"1,444.81",Grounds Maintenance,Administration
Land Registry,Land Registry,17/08/2016,Grounds Maintenance,Gloucester Computer Centre,Carillion Services Ltd,Large,1156235,87.43,Grounds Maintenance,Administration
Land Registry,Land Registry,17/08/2016,Grounds Maintenance,Gloucester Office,Carillion Services Ltd,Large,1156235,591.28,Grounds Maintenance,Administration
Land Registry,Land Registry,17/08/2016,Grounds Maintenance,Hull Office,Carillion Services Ltd,Large,1156235,591.28,Grounds Maintenance,Administration
Land Registry,Land Registry,17/08/2016,Grounds Maintenance,Leicester Office,Carillion Services Ltd,Large,1156235,186.74,Grounds Maintenance,Administration
Land Registry,Land Registry,17/08/2016,Grounds Maintenance,Nottingham Office,Carillion Services Ltd,Large,1156235,299.77,Grounds Maintenance,Administration
Land Registry,Land Registry,17/08/2016,Grounds Maintenance,Telford Office,Carillion Services Ltd,Large,1156235,"1,018.96",Grounds Maintenance,Administration
Land Registry,Land Registry,17/08/2016,Grounds Maintenance,Wales Office,Carillion Services Ltd,Large,1156235,438.67,Grounds Maintenance,Administration
Land Registry,Land Registry,17/08/2016,Grounds Maintenance,Weymouth Office,Carillion Services Ltd,Large,1156235,681.51,Grounds Maintenance,Administration
Land Registry,Land Registry,17/08/2016,Grounds Maintenance,Durham Office,Carillion Services Ltd,Large,1156826,911.64,Grounds Maintenance,Administration
Land Registry,Land Registry,17/08/2016,Office Cleaning Expenses,Birkenhead Office,Carillion Services Ltd,Large,1156235,"4,934.84",Office Cleaning Expenses,Administration
Land Registry,Land Registry,17/08/2016,Office Cleaning Expenses,Croydon Office,Carillion Services Ltd,Large,1156235,"3,742.62",Office Cleaning Expenses,Administration
Land Registry,Land Registry,17/08/2016,Office Cleaning Expenses,Director of Information Systems,Carillion Services Ltd,Large,1156235,"8,056.88",Office Cleaning Expenses,Administration
Land Registry,Land Registry,17/08/2016,Office Cleaning Expenses,Durham Office,Carillion Services Ltd,Large,1156235,"5,732.10",Office Cleaning Expenses,Administration
Land Registry,Land Registry,17/08/2016,Office Cleaning Expenses,Fylde Office,Carillion Services Ltd,Large,1156235,"3,383.65",Office Cleaning Expenses,Administration
Land Registry,Land Registry,17/08/2016,Office Cleaning Expenses,Gloucester Computer Centre,Carillion Services Ltd,Large,1156235,492.37,Office Cleaning Expenses,Administration
Land Registry,Land Registry,17/08/2016,Office Cleaning Expenses,Gloucester Office,Carillion Services Ltd,Large,1156235,"6,398.94",Office Cleaning Expenses,Administration
Land Registry,Land Registry,17/08/2016,Office Cleaning Expenses,Hull Office,Carillion Services Ltd,Large,1156235,"3,583.61",Office Cleaning Expenses,Administration
Land Registry,Land Registry,17/08/2016,Office Cleaning Expenses,Leicester Office,Carillion Services Ltd,Large,1156235,"3,085.42",Office Cleaning Expenses,Administration
Land Registry,Land Registry,17/08/2016,Office Cleaning Expenses,Nottingham Office,Carillion Services Ltd,Large,1156235,"5,418.65",Office Cleaning Expenses,Administration
Land Registry,Land Registry,17/08/2016,Office Cleaning Expenses,Peterborough Office,Carillion Services Ltd,Large,1156235,769.34,Office Cleaning Expenses,Administration
Land Registry,Land Registry,17/08/2016,Office Cleaning Expenses,Telford Office,Carillion Services Ltd,Large,1156235,"5,582.27",Office Cleaning Expenses,Administration
Land Registry,Land Registry,17/08/2016,Office Cleaning Expenses,Wales Office,Carillion Services Ltd,Large,1156235,"4,529.58",Office Cleaning Expenses,Administration
Land Registry,Land Registry,17/08/2016,Office Cleaning Expenses,Weymouth Office,Carillion Services Ltd,Large,1156235,"4,002.43",Office Cleaning Expenses,Administration
Land Registry,Land Registry,17/08/2016,Pest Control,Birkenhead Office,Carillion Services Ltd,Large,1156235,37.74,Pest Control,Administration
Land Registry,Land Registry,17/08/2016,Pest Control,Coventry Office,Carillion Services Ltd,Large,1156235,-48.11,Pest Control,Administration
Land Registry,Land Registry,17/08/2016,Pest Control,Croydon Office,Carillion Services Ltd,Large,1156235,36.24,Pest Control,Administration
Land Registry,Land Registry,17/08/2016,Pest Control,Director of Information Systems,Carillion Services Ltd,Large,1156235,129.85,Pest Control,Administration
Land Registry,Land Registry,17/08/2016,Pest Control,Durham Office,Carillion Services Ltd,Large,1156235,44.15,Pest Control,Administration
Land Registry,Land Registry,17/08/2016,Pest Control,Fylde Office,Carillion Services Ltd,Large,1156235,35.69,Pest Control,Administration
Land Registry,Land Registry,17/08/2016,Pest Control,Gloucester Computer Centre,Carillion Services Ltd,Large,1156235,25.80,Pest Control,Administration
Land Registry,Land Registry,17/08/2016,Pest Control,Gloucester Office,Carillion Services Ltd,Large,1156235,42.10,Pest Control,Administration
Land Registry,Land Registry,17/08/2016,Pest Control,Hull Office,Carillion Services Ltd,Large,1156235,45.10,Pest Control,Administration
Land Registry,Land Registry,17/08/2016,Pest Control,Leicester Office,Carillion Services Ltd,Large,1156235,35.69,Pest Control,Administration
Land Registry,Land Registry,17/08/2016,Pest Control,Nottingham Office,Carillion Services Ltd,Large,1156235,121.85,Pest Control,Administration
Land Registry,Land Registry,17/08/2016,Pest Control,Peterborough Office,Carillion Services Ltd,Large,1156235,36.97,Pest Control,Administration
Land Registry,Land Registry,17/08/2016,Pest Control,RFS4 - Coventry,Carillion Services Ltd,Large,1156235,48.11,Pest Control,Administration
Land Registry,Land Registry,17/08/2016,Pest Control,Telford Office,Carillion Services Ltd,Large,1156235,40.51,Pest Control,Administration
Land Registry,Land Registry,17/08/2016,Pest Control,Wales Office,Carillion Services Ltd,Large,1156235,53.49,Pest Control,Administration
Land Registry,Land Registry,17/08/2016,Pest Control,Weymouth Office,Carillion Services Ltd,Large,1156235,37.74,Pest Control,Administration
Land Registry,Land Registry,17/08/2016,Pest Control,Durham Office,Carillion Services Ltd,Large,1156826,240.75,Pest Control,Administration
Land Registry,Land Registry,17/08/2016,Security Expenses,Birkenhead Office,Carillion Services Ltd,Large,1156235,"2,851.70",Security Expenses,Administration
Land Registry,Land Registry,17/08/2016,Security Expenses,Coventry Office,Carillion Services Ltd,Large,1156235,"6,220.45",Security Expenses,Administration
Land Registry,Land Registry,17/08/2016,Security Expenses,Croydon Office,Carillion Services Ltd,Large,1156235,"7,905.36",Security Expenses,Administration
Land Registry,Land Registry,17/08/2016,Security Expenses,Director of Information Systems,Carillion Services Ltd,Large,1156235,"17,291.36",Security Expenses,Administration
Land Registry,Land Registry,17/08/2016,Security Expenses,Durham Office,Carillion Services Ltd,Large,1156235,"2,311.72",Security Expenses,Administration
Land Registry,Land Registry,17/08/2016,Security Expenses,Fylde Office,Carillion Services Ltd,Large,1156235,"2,093.87",Security Expenses,Administration
Land Registry,Land Registry,17/08/2016,Security Expenses,Gloucester Computer Centre,Carillion Services Ltd,Large,1156235,"6,686.70",Security Expenses,Administration
Land Registry,Land Registry,17/08/2016,Security Expenses,Gloucester Office,Carillion Services Ltd,Large,1156235,"8,511.99",Security Expenses,Administration
Land Registry,Land Registry,17/08/2016,Security Expenses,Hull Office,Carillion Services Ltd,Large,1156235,"2,617.86",Security Expenses,Administration
Land Registry,Land Registry,17/08/2016,Security Expenses,Leicester Office,Carillion Services Ltd,Large,1156235,"2,359.48",Security Expenses,Administration
Land Registry,Land Registry,17/08/2016,Security Expenses,Nottingham Office,Carillion Services Ltd,Large,1156235,"3,000.94",Security Expenses,Administration
Land Registry,Land Registry,17/08/2016,Security Expenses,Telford Office,Carillion Services Ltd,Large,1156235,"2,574.85",Security Expenses,Administration
Land Registry,Land Registry,17/08/2016,Security Expenses,Wales Office,Carillion Services Ltd,Large,1156235,"2,333.58",Security Expenses,Administration
Land Registry,Land Registry,17/08/2016,Security Expenses,Weymouth Office,Carillion Services Ltd,Large,1156235,"2,577.22",Security Expenses,Administration
Land Registry,Land Registry,17/08/2016,Security Expenses,Birkenhead Office,Carillion Services Ltd,Large,1156826,"1,116.49",Security Expenses,Administration
Land Registry,Land Registry,17/08/2016,Security Expenses,Coventry Office,Carillion Services Ltd,Large,1156826,"3,781.81",Security Expenses,Administration
Land Registry,Land Registry,17/08/2016,Security Expenses,Croydon Office,Carillion Services Ltd,Large,1156826,695.33,Security Expenses,Administration
Land Registry,Land Registry,17/08/2016,Security Expenses,Durham Office,Carillion Services Ltd,Large,1156826,"1,116.49",Security Expenses,Administration
Land Registry,Land Registry,17/08/2016,Security Expenses,Fylde Office,Carillion Services Ltd,Large,1156826,"2,429.83",Security Expenses,Administration
Land Registry,Land Registry,17/08/2016,Security Expenses,Hull Office,Carillion Services Ltd,Large,1156826,"1,201.92",Security Expenses,Administration
Land Registry,Land Registry,17/08/2016,Security Expenses,Leicester Office,Carillion Services Ltd,Large,1156826,"1,149.16",Security Expenses,Administration
Land Registry,Land Registry,17/08/2016,Security Expenses,Nottingham Office,Carillion Services Ltd,Large,1156826,"1,635.14",Security Expenses,Administration
Land Registry,Land Registry,17/08/2016,Security Expenses,Telford Office,Carillion Services Ltd,Large,1156826,"1,284.42",Security Expenses,Administration
Land Registry,Land Registry,17/08/2016,Security Expenses,Wales Office,Carillion Services Ltd,Large,1156826,"1,284.42",Security Expenses,Administration
Land Registry,Land Registry,17/08/2016,Security Expenses,Weymouth Office,Carillion Services Ltd,Large,1156826,"1,116.49",Security Expenses,Administration
Land Registry,Land Registry,17/08/2016,Vending Machine Consumables & Repairs,Birkenhead Office,Carillion Services Ltd,Large,1156235,"1,100.55",Vending Machine Consumables & Repairs,Administration
Land Registry,Land Registry,17/08/2016,Vending Machine Consumables & Repairs,Croydon Office,Carillion Services Ltd,Large,1156235,204.94,Vending Machine Consumables & Repairs,Administration
Land Registry,Land Registry,17/08/2016,Vending Machine Consumables & Repairs,Director of Information Systems,Carillion Services Ltd,Large,1156235,199.55,Vending Machine Consumables & Repairs,Administration
Land Registry,Land Registry,17/08/2016,Vending Machine Consumables & Repairs,Durham Office,Carillion Services Ltd,Large,1156235,40.35,Vending Machine Consumables & Repairs,Administration
Land Registry,Land Registry,17/08/2016,Vending Machine Consumables & Repairs,Fylde Office,Carillion Services Ltd,Large,1156235,144.01,Vending Machine Consumables & Repairs,Administration
Land Registry,Land Registry,17/08/2016,Vending Machine Consumables & Repairs,Gloucester Computer Centre,Carillion Services Ltd,Large,1156235,18.36,Vending Machine Consumables & Repairs,Administration
Land Registry,Land Registry,17/08/2016,Vending Machine Consumables & Repairs,Gloucester Office,Carillion Services Ltd,Large,1156235,131.98,Vending Machine Consumables & Repairs,Administration
Land Registry,Land Registry,17/08/2016,Vending Machine Consumables & Repairs,Hull Office,Carillion Services Ltd,Large,1156235,317.45,Vending Machine Consumables & Repairs,Administration
Land Registry,Land Registry,17/08/2016,Vending Machine Consumables & Repairs,Leicester Office,Carillion Services Ltd,Large,1156235,106.19,Vending Machine Consumables & Repairs,Administration
Land Registry,Land Registry,17/08/2016,Vending Machine Consumables & Repairs,Nottingham Office,Carillion Services Ltd,Large,1156235,118.69,Vending Machine Consumables & Repairs,Administration
Land Registry,Land Registry,17/08/2016,Vending Machine Consumables & Repairs,Telford Office,Carillion Services Ltd,Large,1156235,181.28,Vending Machine Consumables & Repairs,Administration
Land Registry,Land Registry,17/08/2016,Vending Machine Consumables & Repairs,Wales Office,Carillion Services Ltd,Large,1156235,177.72,Vending Machine Consumables & Repairs,Administration
Land Registry,Land Registry,17/08/2016,Vending Machine Consumables & Repairs,Weymouth Office,Carillion Services Ltd,Large,1156235,102.86,Vending Machine Consumables & Repairs,Administration
Land Registry,Land Registry,17/08/2016,Waste Disposal,Birkenhead Office,Carillion Services Ltd,Large,1156235,265.07,Waste Disposal,Administration
Land Registry,Land Registry,17/08/2016,Waste Disposal,Croydon Office,Carillion Services Ltd,Large,1156235,194.08,Waste Disposal,Administration
Land Registry,Land Registry,17/08/2016,Waste Disposal,Director of Information Systems,Carillion Services Ltd,Large,1156235,607.11,Waste Disposal,Administration
Land Registry,Land Registry,17/08/2016,Waste Disposal,Durham Office,Carillion Services Ltd,Large,1156235,308.59,Waste Disposal,Administration
Land Registry,Land Registry,17/08/2016,Waste Disposal,Fylde Office,Carillion Services Ltd,Large,1156235,237.54,Waste Disposal,Administration
Land Registry,Land Registry,17/08/2016,Waste Disposal,Gloucester Computer Centre,Carillion Services Ltd,Large,1156235,42.18,Waste Disposal,Administration
Land Registry,Land Registry,17/08/2016,Waste Disposal,Gloucester Office,Carillion Services Ltd,Large,1156235,230.02,Waste Disposal,Administration
Land Registry,Land Registry,17/08/2016,Waste Disposal,Hull Office,Carillion Services Ltd,Large,1156235,173.51,Waste Disposal,Administration
Land Registry,Land Registry,17/08/2016,Waste Disposal,Leicester Office,Carillion Services Ltd,Large,1156235,250.98,Waste Disposal,Administration
Land Registry,Land Registry,17/08/2016,Waste Disposal,Nottingham Office,Carillion Services Ltd,Large,1156235,308.59,Waste Disposal,Administration
Land Registry,Land Registry,17/08/2016,Waste Disposal,Telford Office,Carillion Services Ltd,Large,1156235,221.95,Waste Disposal,Administration
Land Registry,Land Registry,17/08/2016,Waste Disposal,Wales Office,Carillion Services Ltd,Large,1156235,191.33,Waste Disposal,Administration
Land Registry,Land Registry,17/08/2016,Waste Disposal,Weymouth Office,Carillion Services Ltd,Large,1156235,157.75,Waste Disposal,Administration
Land Registry,Land Registry,17/08/2016,Waste Disposal,Durham Office,Carillion Services Ltd,Large,1156826,183.45,Waste Disposal,Administration
Land Registry,Land Registry,17/08/2016,Waste Disposal,Fylde Office,Carillion Services Ltd,Large,1156826,185.57,Waste Disposal,Administration
Land Registry,Land Registry,17/08/2016,Waste Disposal,Hull Office,Carillion Services Ltd,Large,1156826,835.59,Waste Disposal,Administration
Land Registry,Land Registry,17/08/2016,Waste Disposal,Plymouth Office,Carillion Services Ltd,Large,1156826,914.87,Waste Disposal,Administration
Land Registry,Land Registry,17/08/2016,Waste Disposal,Telford Office,Carillion Services Ltd,Large,1156826,185.57,Waste Disposal,Administration
Land Registry,Land Registry,17/08/2016,Waste Disposal,Wales Office,Carillion Services Ltd,Large,1156826,234.28,Waste Disposal,Administration
Land Registry,Land Registry,17/08/2016,Water,Croydon Office,Carillion Services Ltd,Large,1156280,"2,000.56",Water,Administration
Land Registry,Land Registry,17/08/2016,Water,Director of Information Systems,Carillion Services Ltd,Large,1156280,"4,824.12",Water,Administration
Land Registry,Land Registry,17/08/2016,Water,Fylde Office,Carillion Services Ltd,Large,1156280,"3,241.75",Water,Administration
Land Registry,Land Registry,17/08/2016,Water,Gloucester Office,Carillion Services Ltd,Large,1156280,931.28,Water,Administration
Land Registry,Land Registry,17/08/2016,Water,Hull Office,Carillion Services Ltd,Large,1156280,924.52,Water,Administration
Land Registry,Land Registry,17/08/2016,Water,Leicester Office,Carillion Services Ltd,Large,1156280,"1,954.18",Water,Administration
Land Registry,Land Registry,17/08/2016,Water,Nottingham Office,Carillion Services Ltd,Large,1156280,"3,343.02",Water,Administration
Land Registry,Land Registry,17/08/2016,Water,Telford Office,Carillion Services Ltd,Large,1156280,"1,325.17",Water,Administration
Land Registry,Land Registry,04/08/2016,Computer Equipment Maintenance,IS Service Delivery,CGI IT UK Limited,Large,1155440,"61,500.00",Computer Equipment Maintenance,Administration
Land Registry,Land Registry,30/08/2016,Rates Payable,Wales Office,City & County of Swansea,Large,1142546,"17,739.00",Rates Payable,Administration
Land Registry,Land Registry,01/08/2016,Rates Payable,Croydon Office,Croydon Council,Large,1142545,"29,469.00",Rates Payable,Administration
Land Registry,Land Registry,08/08/2016,Telecoms Equipment Maintenance,IS Service Delivery,Datrix Ltd,SME,1155699,"203,411.15",Telecoms Equipment Maintenance,Administration
Land Registry,Land Registry,30/08/2016,Rates Payable,Durham Office,Durham County Council,Large,1142132,"28,826.00",Rates Payable,Administration
Land Registry,Land Registry,30/08/2016,Rates Payable,Fylde Office,Fylde Borough Council,Large,1140762,"16,774.00",Rates Payable,Administration
Land Registry,Land Registry,17/08/2016,Professional Subscriptions,Director of Information Systems,Gartner UK Limited,Large,1156824,"27,240.00",Professional Subscriptions,Administration
Land Registry,Land Registry,30/08/2016,Rates Payable,Gloucester Office,Gloucester City Council,Large,1142548,"24,726.00",Rates Payable,Administration
Land Registry,Land Registry,31/08/2016,National Medical Expenses,HR Operations,Health Management Ltd,Large,1157943,"53,759.65",National Medical Expenses,Administration
Land Registry,Land Registry,09/08/2016,Computer Equipment Maintenance,IS Service Delivery,IBM United Kingdom Ltd,Large,1156164,"48,785.00",Computer Equipment Maintenance,Administration
Land Registry,Land Registry,16/08/2016,Data Network Lines,IS Service Delivery,Interoute Vtesse Ltd,Large,1151150,"61,250.00",Data Network Lines,Administration
Land Registry,Land Registry,16/08/2016,Data Network Lines,IS Service Delivery,Interoute Vtesse Ltd,Large,1156275,"-53,260.88",Data Network Lines,Administration
Land Registry,Land Registry,10/08/2016,Rates Payable,Hull Office,Kingston Upon Hull City Council,Large,1142544,"13,171.00",Rates Payable,Administration
Land Registry,Land Registry,30/08/2016,Rates Payable,Leicester Office,Leicester City Council,Large,1141494,"18,638.00",Rates Payable,Administration
Land Registry,Land Registry,23/08/2016,Professional Services,Program: Local Land Charges,Market & Opinion Research International Ltd,Large,1156974,"37,380.00",Professional Services,Administration
Land Registry,Land Registry,30/08/2016,Rates Payable,Nottingham Office,Nottingham City Council,Large,1142549,"24,850.00",Rates Payable,Administration
Land Registry,Land Registry,09/08/2016,Ordnance Survey Surveys,Central Operations Group,Ordnance Survey,Large,1155961,"707,389.00",Ordnance Survey Surveys,Administration
Land Registry,Land Registry,30/08/2016,Rates Payable,Peterborough Office,Peterborough City Council,Large,1141971,"11,183.00",Rates Payable,Administration
Land Registry,Land Registry,10/08/2016,FF&F:Hire (Central Print Only),IS Service Delivery,Pitney Bowes Finance Ltd,Large,1145219,"25,853.00","Furniture, Fixtures & Fittings: Hire (Central Print Only)",Administration
Land Registry,Land Registry,10/08/2016,FF&F:Hire (Central Print Only),IS Service Delivery,Pitney Bowes Finance Ltd,Large,1144352,"25,853.00","Furniture, Fixtures & Fittings: Hire (Central Print Only)",Administration
Land Registry,Land Registry,10/08/2016,FF&F:Hire (Central Print Only),IS Service Delivery,Pitney Bowes Finance Ltd,Large,1156015,"40,353.00","Furniture, Fixtures & Fittings: Hire (Central Print Only)",Administration
Land Registry,Land Registry,10/08/2016,FF&F:Hire (Central Print Only),IS Service Delivery,Pitney Bowes Finance Ltd,Large,1156014,"40,353.00","Furniture, Fixtures & Fittings: Hire (Central Print Only)",Administration
Land Registry,Land Registry,10/08/2016,FF&F:Hire (Central Print Only),IS Service Delivery,Pitney Bowes Finance Ltd,Large,1156009,"-25,853.00","Furniture, Fixtures & Fittings: Hire (Central Print Only)",Administration
Land Registry,Land Registry,10/08/2016,FF&F:Hire (Central Print Only),IS Service Delivery,Pitney Bowes Finance Ltd,Large,1156010,"-33,103.00","Furniture, Fixtures & Fittings: Hire (Central Print Only)",Administration
Land Registry,Land Registry,30/08/2016,Rates Payable,Governance & Policy,Plymouth City Council,Large,1141797,"37,275.00",Rates Payable,Administration
Land Registry,Land Registry,11/08/2016,Letter Post,Birkenhead Office,Royal Mail,Large,1156277,"1,645.90",Letter Post,Administration
Land Registry,Land Registry,11/08/2016,Letter Post,Coventry Office,Royal Mail,Large,1156277,453.08,Letter Post,Administration
Land Registry,Land Registry,11/08/2016,Letter Post,Croydon Office,Royal Mail,Large,1156277,"1,932.22",Letter Post,Administration
Land Registry,Land Registry,11/08/2016,Letter Post,Durham Office,Royal Mail,Large,1156277,"5,133.16",Letter Post,Administration
Land Registry,Land Registry,11/08/2016,Letter Post,Fylde Office,Royal Mail,Large,1156277,"2,381.60",Letter Post,Administration
Land Registry,Land Registry,11/08/2016,Letter Post,Gloucester Office,Royal Mail,Large,1156277,"1,745.20",Letter Post,Administration
Land Registry,Land Registry,11/08/2016,Letter Post,Hull Office,Royal Mail,Large,1156277,"2,249.02",Letter Post,Administration
Land Registry,Land Registry,11/08/2016,Letter Post,IS Service Delivery,Royal Mail,Large,1156277,"18,726.07",Letter Post,Administration
Land Registry,Land Registry,11/08/2016,Letter Post,Land Charges,Royal Mail,Large,1156277,956.00,Letter Post,Administration
Land Registry,Land Registry,11/08/2016,Letter Post,Leicester Office,Royal Mail,Large,1156277,"1,679.93",Letter Post,Administration
Land Registry,Land Registry,11/08/2016,Letter Post,Nottingham Office,Royal Mail,Large,1156277,"4,416.33",Letter Post,Administration
Land Registry,Land Registry,11/08/2016,Letter Post,Peterborough Office,Royal Mail,Large,1156277,"1,576.38",Letter Post,Administration
Land Registry,Land Registry,11/08/2016,Letter Post,Plymouth Office,Royal Mail,Large,1156277,"2,867.98",Letter Post,Administration
Land Registry,Land Registry,11/08/2016,Letter Post,Telford Office,Royal Mail,Large,1156277,"1,409.73",Letter Post,Administration
Land Registry,Land Registry,11/08/2016,Letter Post,Wales Office,Royal Mail,Large,1156277,"12,476.37",Letter Post,Administration
Land Registry,Land Registry,11/08/2016,Letter Post,Weymouth Office,Royal Mail,Large,1156277,"1,425.96",Letter Post,Administration
Land Registry,Land Registry,30/08/2016,Rates Payable,Governance & Policy,South Hams District Council,Large,1142551,"4,597.00",Rates Payable,Administration
Land Registry,Land Registry,04/08/2016,Software as a Service (Cloud),IS Service Delivery,Specialist Computer Centres Plc - SCC,Large,1155352,"166,100.57",Cloud Computing Services,Administration
Land Registry,Land Registry,30/08/2016,Rates Payable,Telford Office,Telford & Wrekin Council,Large,1142855,"25,596.00",Rates Payable,Administration
Land Registry,Land Registry,30/08/2016,Rates Payable,Gloucester Computer Centre,Tewkesbury Borough Council,Large,1140892,"11,878.00",Rates Payable,Administration
Land Registry,Land Registry,09/08/2016,RFS Outsourced Services,Central RFS,TNT (UK) Ltd,Large,1155966,"95,757.94",Regional File Store Outsourced Services,Administration
Land Registry,Land Registry,09/08/2016,RFS Outsourced Services,Central RFS,TNT (UK) Ltd,Large,1155963,"189,645.45",Regional File Store Outsourced Services,Administration
Land Registry,Land Registry,04/08/2016,Software as a Service (Cloud),IS Service Delivery,Vehera Ltd,Large,1155357,"61,222.40",Cloud Computing Services,Administration
Land Registry,Land Registry,05/08/2016,Rates Payable,Weymouth Office,West Dorset District Council,Large,1143370,"19,507.00",Rates Payable,Administration
Land Registry,Land Registry,01/08/2016,Rates Payable,Birkenhead Office,Wirral Metrpolitan Borough Council,Large,1143152,"25,347.00",Rates Payable,Administration
Land Registry,Land Registry,01/08/2016,Rates Payable,Birkenhead Office,Wirral Metrpolitan Borough Council,Large,1143153,"3,554.00",Rates Payable,Administration
